fUST/lending_fUST_20250810
["ID","MTS","AMOUNT","RATE_DAILY","PERIOD"]
[378161916,1754755248080,1888.4642423,0.00021485,2]
[378161917,1754755252850,620.27,0.00024436,30]
[378161918,1754755253266,1240.54,0.00025599,30]
[378161919,1754755253681,1860.82,0.00026763,30]
[378161920,1754755254774,2481.09,0.00027927,30]
[378161921,1754755291184,200.0,0.00030128,120]
[378161922,1754755295790,942.76950684,0.000199,2]
[378161923,1754755295820,10359.9548403,0.000199,2]
[378161924,1754755304617,9640.0451597,0.00020582,2]
[378161925,1754755304643,359.9548403,0.00020582,2]
[378161926,1754755330414,1672.38,0.00030137,120]
[378161927,1754755341717,588.69,0.00024252,30]
[378161928,1754755342136,1177.38,0.00025407,30]
[378161929,1754755342553,1766.06,0.00026562,30]
[378161930,1754755343058,2354.75,0.00027717,30]
[378161931,1754755361418,823.91064133,0.00021483,2]
[378161933,1754755375730,522.533689,0.00013699,2]
[378161934,1754755375947,522.533689,0.00020187,2]
[378161935,1754755377720,15764.82689416,0.00021485,2]
[378161936,1754755422419,558.81,0.0002488,30]
[378161937,1754755422848,1117.63,0.00026065,30]
[378161938,1754755423291,1676.44,0.00027249,30]
[378161939,1754755482567,2006.24024621,0.000199,2]
[378161940,1754755482594,9542.28861909,0.000199,2]
[378161941,1754755503307,542.75,0.00024595,30]
[378161942,1754755503857,1085.5,0.00025766,30]
[378161943,1754755504183,1628.25,0.00026937,30]
[378161944,1754755552601,666.0,0.00020579,2]
[378161947,1754755584566,538.26,0.0002448,30]
[378161948,1754755584986,1076.52,0.00025646,30]
[378161949,1754755585939,1614.78,0.00026811,30]
[378161950,1754755586596,2153.03,0.00027977,30]
[378161951,1754755588250,1510.77139384,0.00021485,2]
[378161952,1754755603162,8280.93998707,0.00020743,2]
[378161953,1754755603185,5029.08006013,0.00020743,2]
[378161954,1754755637922,10509.88459612,0.00021485,2]
[378161955,1754755643523,3735.7925242,0.00020579,2]
[378161956,1754755646630,720.92181119,0.00021482,2]
[378161957,1754755665236,511.04,0.00022626,30]
[378161958,1754755666372,4.32100836,0.000199,2]
[378161959,1754755666403,11602.12944819,0.000199,2]
[378161960,1754755666828,1022.08,0.00023703,30]
[378161961,1754755667256,1533.12,0.00024781,30]
[378161962,1754755667687,2044.15,0.00025858,30]
[378161963,1754755668130,2555.19,0.00026936,30]
[378161964,1754755749176,471.35,0.00022417,30]
[378161965,1754755749758,942.71,0.00023484,30]
[378161966,1754755750020,1414.06,0.00024552,30]
[378161967,1754755750449,1885.42,0.00025619,30]
[378161968,1754755750480,2400.9951595,0.00020738,2]
[378161969,1754755751363,2356.77,0.00026687,30]
[378161970,1754755751777,2828.13,0.00027754,30]
[378161972,1754755824956,543.848929,0.00020574,2]
[378161973,1754755831143,419.48,0.00022281,30]
[378161974,1754755831571,838.96,0.00023342,30]
[378161991,1754755832030,1258.44,0.00024403,30]
[378162036,1754755832450,1677.92,0.00025464,30]
[378162045,1754755832541,-1200.0,0.00021552,2]
[378162047,1754755832552,-300.0,0.00021552,2]
[378162049,1754755832563,-1200.0,0.00021552,2]
[378162050,1754755832572,-1510.77139384,0.00021553,2]
[378162052,1754755832582,-824.03,0.00021553,2]
[378162054,1754755832592,-460.0,0.00021553,2]
[378162056,1754755832601,-2116.47,0.00021553,2]
[378162057,1754755832611,-460.0,0.00021553,2]
[378162059,1754755832621,-460.0,0.00021553,2]
[378162061,1754755832630,-460.0,0.00021553,2]
[378162063,1754755832641,-460.0,0.00021553,2]
[378162064,1754755832651,-460.0,0.00021553,2]
[378162066,1754755832661,-460.0,0.00021553,2]
[378162068,1754755832670,-460.0,0.00021553,2]
[378162069,1754755832679,-1719.64,0.00021553,2]
[378162071,1754755832688,-1421.88,0.00021553,2]
[378162073,1754755832698,-175.16684187,0.00021553,2]
[378162075,1754755832707,-460.0,0.00021553,2]
[378162076,1754755832717,-460.0,0.00021553,2]
[378162078,1754755832727,-460.0,0.00021553,2]
[378162080,1754755832736,-460.0,0.00021553,2]
[378162082,1754755832746,-460.0,0.00021553,2]
[378162083,1754755832755,-460.0,0.00021553,2]
[378162085,1754755832764,-460.0,0.00021553,2]
[378162087,1754755832774,-460.0,0.00021553,2]
[378162088,1754755832784,-460.0,0.00021553,2]
[378162090,1754755832794,-710.3,0.00021553,2]
[378162092,1754755832803,-864.02,0.00021553,2]
[378162093,1754755832813,-659.44,0.00021553,2]
[378162095,1754755832824,-460.0,0.00021553,2]
[378162097,1754755832833,-460.0,0.00021553,2]
[378162099,1754755832843,-460.0,0.00021553,2]
[378162100,1754755832853,-509.00107617,0.00021553,2]
[378162102,1754755832862,-460.0,0.00021553,2]
[378162104,1754755832872,-460.0,0.00021553,2]
[378162105,1754755832882,-460.0,0.00021553,2]
[378162107,1754755832891,-460.0,0.00021553,2]
[378162109,1754755832901,-466.8464826,0.00021553,2]
[378162110,1754755832910,-460.0,0.00021553,2]
[378162112,1754755832920,-1697.12,0.00021553,2]
[378162114,1754755832930,-527.59,0.00021553,2]
[378162116,1754755832939,-460.0,0.00021553,2]
[378162118,1754755832949,-500.0,0.00021554,2]
[378162119,1754755832959,-460.0,0.00021554,2]
[378162121,1754755832969,-460.0,0.00021554,2]
[378162123,1754755832978,-460.0,0.00021554,2]
[378162124,1754755832988,-460.0,0.00021554,2]
[378162126,1754755832997,-460.0,0.00021554,2]
[378162127,1754755833007,-460.0,0.00021554,2]
[378162128,1754755833016,-1063.74,0.00021554,2]
[378162129,1754755833025,-460.0,0.00021554,2]
[378162131,1754755833035,-567.25345721,0.00021554,2]
[378162132,1754755833045,-460.0,0.00021554,2]
[378162134,1754755833055,-1479.52,0.00021554,2]
[378162136,1754755833066,-3505.32,0.00021554,2]
[378162137,1754755833075,-460.0,0.00021554,2]
[378162139,1754755833084,-850.09,0.00021554,2]
[378162141,1754755833094,-1179.42,0.00021554,2]
[378162142,1754755833104,-472.95,0.00021554,2]
[378162144,1754755833114,-236.05,0.00021573,10]
[378162145,1754755833124,-591.26,0.00021575,3]
[378162147,1754755833134,-295.63,0.00021575,3]
[378162149,1754755833144,-886.93,0.00021575,3]
[378162151,1754755833154,-460.0,0.00021582,2]
[378162152,1754755833163,-460.0,0.00021582,2]
[378162154,1754755833173,-462.2223395,0.00021582,2]
[378162156,1754755833183,-460.0,0.00021582,2]
[378162157,1754755833192,-460.0,0.00021582,2]
[378162159,1754755833202,-460.0,0.00021582,2]
[378162161,1754755833212,-460.0,0.00021582,2]
[378162163,1754755833221,-147.48747181,0.00021582,2]
[378162167,1754755833283,2097.4,0.00026525,30]
[378162168,1754755833798,2516.88,0.00027586,30]
[378162182,1754755838450,-460.0,0.00021553,2]
[378162183,1754755838464,-460.0,0.00021553,2]
[378162184,1754755838474,-460.0,0.00021553,2]
[378162185,1754755838483,-473.32887123,0.00021553,2]
[378162186,1754755838493,-196.71,0.00021573,10]
[378162187,1754755838503,-213.16112877,0.00021582,2]
[378162188,1754755838645,-139.35139942,0.00021582,2]
[378162189,1754755838655,-500.0,0.00021582,2]
[378162190,1754755838665,-172.47626725,0.00021582,2]
[378162191,1754755838674,-309.23501906,0.00021582,2]
[378162192,1754755838683,-460.0,0.00021582,2]
[378162193,1754755838693,-500.0,0.00021582,2]
[378162194,1754755838702,-518.66,0.00021582,2]
[378162195,1754755838712,-468.59425106,0.00021582,2]
[378162196,1754755838722,-460.0,0.00021582,2]
[378162197,1754755838731,-460.0,0.00021583,2]
[378162198,1754755838741,-516.12082053,0.00021583,2]
[378162199,1754755838750,-460.0,0.00021583,2]
[378162200,1754755838760,-460.0,0.00021583,2]
[378162201,1754755838769,-460.0,0.00021583,2]
[378162202,1754755838779,-461.43234869,0.00021583,2]
[378162203,1754755838788,-460.0,0.00021583,2]
[378162204,1754755838797,-511.08272571,0.00021583,2]
[378162205,1754755838807,-460.0,0.00021583,2]
[378162206,1754755838816,-460.0,0.00021583,2]
[378162207,1754755838826,-460.0,0.00021583,2]
[378162208,1754755838835,-460.0,0.00021583,2]
[378162209,1754755838845,-460.0,0.00021583,2]
[378162210,1754755838854,-468.88393229,0.00021583,2]
[378162211,1754755838864,-460.0,0.00021583,2]
[378162212,1754755838874,-460.0,0.00021583,2]
[378162213,1754755838884,-460.0,0.00021583,2]
[378162214,1754755838894,-460.0,0.00021583,2]
[378162215,1754755838905,-460.0,0.00021583,2]
[378162216,1754755838915,-460.0,0.00021583,2]
[378162217,1754755838925,-460.0,0.00021583,2]
[378162218,1754755838935,-460.0,0.00021583,2]
[378162219,1754755838945,-460.0,0.00021583,2]
[378162220,1754755838954,-461.05073566,0.00021583,2]
[378162221,1754755838964,-460.0,0.00021583,2]
[378162222,1754755838973,-460.0,0.00021583,2]
[378162223,1754755838984,-460.0,0.00021583,2]
[378162224,1754755838993,-460.0,0.00021583,2]
[378162225,1754755839003,-460.0,0.00021583,2]
[378162226,1754755839013,-460.0,0.00021583,2]
[378162227,1754755839022,-460.0,0.00021583,2]
[378162228,1754755839032,-460.0,0.00021583,2]
[378162229,1754755839042,-460.0,0.00021583,2]
[378162230,1754755839051,-460.0,0.00021583,2]
[378162231,1754755839060,-460.0,0.00021583,2]
[378162232,1754755839071,-460.0,0.00021583,2]
[378162233,1754755839081,-460.0,0.00021583,2]
[378162234,1754755839091,-460.0,0.00021583,2]
[378162235,1754755839100,-460.0,0.00021583,2]
[378162236,1754755839109,-460.0,0.00021583,2]
[378162237,1754755839119,-460.0,0.00021583,2]
[378162238,1754755839128,-460.0,0.00021583,2]
[378162239,1754755839138,-460.0,0.00021583,2]
[378162240,1754755839147,-460.0,0.00021583,2]
[378162241,1754755839157,-460.0,0.00021583,2]
[378162242,1754755839166,-460.89020089,0.00021583,2]
[378162243,1754755839175,-460.0,0.00021583,2]
[378162244,1754755839184,-460.0,0.00021583,2]
[378162245,1754755839194,-460.0,0.00021583,2]
[378162246,1754755839203,-460.0,0.00021583,2]
[378162247,1754755839353,-460.0,0.00021583,2]
[378162248,1754755839364,-460.0,0.00021583,2]
[378162249,1754755839375,-460.0,0.00021583,2]
[378162250,1754755839389,-460.0,0.00021583,2]
[378162251,1754755839399,-460.0,0.00021583,2]
[378162252,1754755839409,-460.0,0.00021583,2]
[378162253,1754755839418,-460.0,0.00021583,2]
[378162254,1754755839428,-460.0,0.00021583,2]
[378162255,1754755839438,-460.0,0.00021583,2]
[378162256,1754755839447,-460.0,0.00021583,2]
[378162257,1754755839458,-460.0,0.00021583,2]
[378162258,1754755839470,-460.0,0.00021583,2]
[378162259,1754755839479,-460.0,0.00021583,2]
[378162260,1754755839488,-460.0,0.00021583,2]
[378162261,1754755839497,-460.0,0.00021583,2]
[378162262,1754755839508,-500.0,0.00021583,2]
[378162263,1754755839521,-460.0,0.00021583,2]
[378162264,1754755839530,-577.61834376,0.00021583,2]
[378162265,1754755839541,-464.63153416,0.00021583,2]
[378162266,1754755839552,-460.0,0.00021583,2]
[378162267,1754755839562,-211.75390154,0.00021583,2]
[378162268,1754755839572,-512.79300748,0.00021583,2]
[378162269,1754755839581,-460.0,0.00021583,2]
[378162270,1754755839592,-460.0,0.00021583,2]
[378162271,1754755839601,-460.0,0.00021583,2]
[378162272,1754755839611,-461.19518671,0.00021583,2]
[378162273,1754755839620,-460.66582458,0.00021583,2]
[378162274,1754755839630,-460.0,0.00021583,2]
[378162275,1754755839639,-460.0,0.00021583,2]
[378162276,1754755839649,-460.0,0.00021583,2]
[378162277,1754755839658,-460.0,0.00021583,2]
[378162278,1754755839667,-460.0,0.00021583,2]
[378162280,1754755839677,-460.0,0.00021583,2]
[378162282,1754755839686,-460.0,0.00021583,2]
[378162283,1754755839696,-460.0,0.00021583,2]
[378162284,1754755839705,-460.0,0.00021583,2]
[378162285,1754755839714,-460.0,0.00021583,2]
[378162286,1754755839724,-460.0,0.00021583,2]
[378162287,1754755839733,-494.73110871,0.00021583,2]
[378162288,1754755839743,-460.0,0.00021583,2]
[378162289,1754755839752,-460.0,0.00021583,2]
[378162290,1754755839761,-460.0,0.00021583,2]
[378162291,1754755839771,-554.93,0.00021583,2]
[378162292,1754755839781,-460.0,0.00021583,2]
[378162294,1754755839790,-460.0,0.00021583,2]
[378162296,1754755839800,-460.0,0.00021583,2]
[378162298,1754755839809,-918.02,0.00021583,2]
[378162300,1754755839819,-460.0,0.00021583,2]
[378162302,1754755839828,-460.0,0.00021583,2]
[378162304,1754755839838,-460.0,0.00021583,2]
[378162306,1754755839847,-460.0,0.00021583,2]
[378162308,1754755839856,-465.21925232,0.00021583,2]
[378162310,1754755839866,-460.0,0.00021583,2]
[378162312,1754755839876,-460.0,0.00021583,2]
[378162314,1754755839885,-460.0,0.00021583,2]
[378162316,1754755839895,-460.0,0.00021583,2]
[378162318,1754755839904,-463.59607718,0.00021583,2]
[378162320,1754755839914,-469.8107584,0.00021583,2]
[378162322,1754755839924,-460.0,0.00021583,2]
[378162324,1754755839934,-460.0,0.00021583,2]
[378162326,1754755839943,-460.0,0.00021583,2]
[378162328,1754755839952,-460.0,0.00021583,2]
[378162330,1754755839962,-460.0,0.00021583,2]
[378162332,1754755839971,-460.0,0.00021583,2]
[378162334,1754755839980,-460.0,0.00021583,2]
[378162336,1754755839989,-460.0,0.00021583,2]
[378162338,1754755839998,-460.0,0.00021583,2]
[378162340,1754755840007,-460.0,0.00021583,2]
[378162342,1754755840016,-460.0,0.00021583,2]
[378162344,1754755840026,-460.0,0.00021583,2]
[378162346,1754755840035,-460.0,0.00021583,2]
[378162348,1754755840044,-460.0,0.00021583,2]
[378162350,1754755840053,-460.0,0.00021583,2]
[378162352,1754755840062,-460.0,0.00021583,2]
[378162354,1754755840071,-475.61987915,0.00021583,2]
[378162356,1754755840080,-460.0,0.00021583,2]
[378162358,1754755840089,-460.0,0.00021583,2]
[378162360,1754755840098,-460.0,0.00021583,2]
[378162362,1754755840107,-460.0,0.00021583,2]
[378162364,1754755840118,-764.96,0.00021583,2]
[378162366,1754755840127,-460.0,0.00021583,2]
[378162368,1754755840136,-500.0,0.00021583,2]
[378162370,1754755840145,-161.27310143,0.00021583,2]
[378162372,1754755840154,-518.66,0.00021583,2]
[378162374,1754755840163,-460.0,0.00021583,2]
[378162376,1754755840172,-460.0,0.00021583,2]
[378162378,1754755840182,-460.0,0.00021583,2]
[378162380,1754755840190,-460.0,0.00021583,2]
[378162382,1754755840200,-460.0,0.00021583,2]
[378162384,1754755840210,-462.52751253,0.00021583,2]
[378162385,1754755840219,-460.0,0.00021583,2]
[378162387,1754755840228,-460.0,0.00021583,2]
[378162389,1754755840237,-460.0,0.00021583,2]
[378162391,1754755840247,-460.0,0.00021583,2]
[378162393,1754755840256,-460.0,0.00021583,2]
[378162395,1754755840265,-460.0,0.00021583,2]
[378162397,1754755840274,-460.0,0.00021583,2]
[378162399,1754755840283,-460.0,0.00021583,2]
[378162401,1754755840292,-460.0,0.00021583,2]
[378162403,1754755840302,-460.0,0.00021583,2]
[378162405,1754755840311,-460.0,0.00021583,2]
[378162407,1754755840320,-460.0,0.00021583,2]
[378162409,1754755840329,-460.0,0.00021583,2]
[378162411,1754755840338,-460.0,0.00021583,2]
[378162413,1754755840347,-460.0,0.00021583,2]
[378162415,1754755840357,-460.0,0.00021583,2]
[378162417,1754755840366,-460.0,0.00021583,2]
[378162419,1754755840376,-460.0,0.00021583,2]
[378162421,1754755840385,-393.2687295,0.00021583,2]
[378162423,1754755840395,-460.0,0.00021583,2]
[378162425,1754755840404,-460.0,0.00021583,2]
[378162427,1754755840414,-460.0,0.00021583,2]
[378162430,1754755840423,-463.17031136,0.00021583,2]
[378162431,1754755840433,-460.0,0.00021583,2]
[378162434,1754755840442,-460.0,0.00021583,2]
[378162435,1754755840452,-460.0,0.00021583,2]
[378162438,1754755840465,-460.0,0.00021583,2]
[378162440,1754755840474,-460.0,0.00021583,2]
[378162441,1754755840483,-460.0,0.00021583,2]
[378162444,1754755840494,-460.0,0.00021583,2]
[378162446,1754755840503,-460.0,0.00021583,2]
[378162448,1754755840512,-460.0,0.00021583,2]
[378162450,1754755840521,-463.18464276,0.00021583,2]
[378162451,1754755840532,-460.0,0.00021583,2]
[378162454,1754755840542,-679.77,0.00021583,2]
[378162455,1754755840551,-460.0,0.00021583,2]
[378162457,1754755840560,-460.0,0.00021583,2]
[378162460,1754755840570,-460.0,0.00021583,2]
[378162461,1754755840580,-460.0,0.00021583,2]
[378162464,1754755840589,-376.87757587,0.00021583,2]
[378162466,1754755840598,-460.0,0.00021583,2]
[378162468,1754755840607,-460.0,0.00021583,2]
[378162469,1754755840617,-460.0,0.00021583,2]
[378162472,1754755840626,-460.0,0.00021583,2]
[378162474,1754755840636,-460.0,0.00021583,2]
[378162476,1754755840644,-464.59677058,0.00021583,2]
[378162478,1754755840654,-500.0,0.00021584,2]
[378162480,1754755840663,-500.0,0.00021584,2]
[378162482,1754755840675,-500.0,0.00021584,2]
[378162484,1754755840688,-500.0,0.00021584,2]
[378162487,1754755840702,-500.0,0.00021584,2]
[378162489,1754755840715,-500.0,0.00021584,2]
[378162491,1754755840728,-500.0,0.00021584,2]
[378162494,1754755840739,-500.0,0.00021584,2]
[378162496,1754755840752,-500.0,0.00021584,2]
[378162498,1754755840765,-711.6527453,0.00021584,2]
[378162501,1754755840777,-711.6527453,0.00021584,2]
[378162503,1754755840790,-711.6527453,0.00021584,2]
[378162505,1754755840803,-711.6527453,0.00021584,2]
[378162508,1754755840815,-711.6527453,0.00021584,2]
[378162510,1754755840830,-711.6527453,0.00021584,2]
[378162512,1754755840845,-711.6527453,0.00021584,2]
[378162514,1754755840858,-711.6527453,0.00021584,2]
[378162517,1754755840870,-711.6527453,0.00021584,2]
[378162519,1754755840883,-711.6527453,0.00021584,2]
[378162521,1754755840896,-711.6527453,0.00021584,2]
[378162523,1754755840910,-975.0478426,0.00021584,2]
[378162524,1754755840923,-975.0478426,0.00021584,2]
[378162526,1754755840936,-975.0478426,0.00021584,2]
[378162528,1754755840949,-975.0478426,0.00021584,2]
[378162529,1754755840961,-1235.06060062,0.00021584,2]
[378162530,1754755840973,-1235.06060062,0.00021584,2]
[378162532,1754755840984,-500.0,0.00021584,2]
[378162534,1754755840995,-500.0,0.00021584,2]
[378162536,1754755841008,-500.0,0.00021584,2]
[378162537,1754755841020,-500.0,0.00021584,2]
[378162538,1754755841032,-500.0,0.00021584,2]
[378162539,1754755841045,-500.0,0.00021584,2]
[378162540,1754755841057,-500.0,0.00021584,2]
[378162541,1754755841068,-500.0,0.00021584,2]
[378162542,1754755841081,-500.0,0.00021584,2]
[378162543,1754755841093,-500.0,0.00021584,2]
[378162544,1754755841106,-212.32,0.00021584,2]
[378162545,1754755841119,-518.66,0.00021584,2]
[378162546,1754755841130,-518.66,0.00021584,2]
[378162547,1754755841139,-518.66,0.00021584,2]
[378162548,1754755841150,-518.66,0.00021584,2]
[378162549,1754755841160,-518.66,0.00021584,2]
[378162550,1754755841172,-518.66,0.00021584,2]
[378162551,1754755841184,-518.66,0.00021584,2]
[378162552,1754755841198,-518.66,0.00021584,2]
[378162553,1754755841210,-518.66,0.00021584,2]
[378162554,1754755841220,-518.66,0.00021584,2]
[378162555,1754755841231,-518.66,0.00021584,2]
[378162556,1754755841243,-518.66,0.00021584,2]
[378162557,1754755841255,-518.66,0.00021584,2]
[378162558,1754755841268,-518.66,0.00021584,2]
[378162559,1754755841279,-518.66,0.00021584,2]
[378162560,1754755841289,-518.66,0.00021584,2]
[378162561,1754755841300,-518.66,0.00021584,2]
[378162562,1754755841322,-518.66,0.00021584,2]
[378162563,1754755841345,-518.66,0.00021584,2]
[378162564,1754755841361,-518.66,0.00021584,2]
[378162565,1754755841372,-518.66,0.00021584,2]
[378162566,1754755841383,-518.7642818,0.00021584,2]
[378162567,1754755841395,-370000.0,0.00021585,2]
[378162568,1754755841406,-1510.77139384,0.00021621,2]
[378162569,1754755841417,-11606.45045631,0.00021655,2]
[378162570,1754755841428,-500.0,0.00021673,2]
[378162571,1754755841439,-500.0,0.00021673,2]
[378162572,1754755841451,-500.0,0.00021673,2]
[378162573,1754755841466,-164.89369169,0.00021673,2]
[378162574,1754755841478,-500.0,0.00021673,2]
[378162575,1754755841489,-500.0,0.00021673,2]
[378162576,1754755841500,-232.84258371,0.00021673,2]
[378162577,1754755841511,-500.0,0.00021673,2]
[378162578,1754755841523,-250.0,0.00021673,2]
[378162579,1754755841535,-507.42146889,0.00021673,2]
[378162580,1754755841546,-250.34670628,0.00021673,2]
[378162581,1754755841557,-500.33812626,0.00021673,2]
[378162582,1754755841568,-323.40389411,0.00021673,2]
[378162583,1754755841579,-500.0,0.00021673,2]
[378162584,1754755841590,-331.0374753,0.00021673,2]
[378162585,1754755841601,-500.0,0.00021673,2]
[378162586,1754755841613,-500.0,0.00021673,2]
[378162587,1754755841625,-460.0,0.00021673,2]
[378162588,1754755841636,-460.0,0.00021673,2]
[378162589,1754755841647,-460.0,0.00021673,2]
[378162590,1754755841658,-460.0,0.00021673,2]
[378162591,1754755841669,-460.0,0.00021673,2]
[378162592,1754755841681,-460.0,0.00021673,2]
[378162593,1754755841693,-460.0,0.00021673,2]
[378162594,1754755841704,-460.0,0.00021673,2]
[378162595,1754755841715,-460.0,0.00021673,2]
[378162596,1754755841726,-460.0,0.00021673,2]
[378162597,1754755841738,-628.81,0.00021673,2]
[378162598,1754755841750,-460.0,0.00021673,2]
[378162599,1754755841761,-3015.811308,0.00021673,2]
[378162600,1754755841772,-463.11882144,0.00021673,2]
[378162601,1754755841783,-460.0,0.00021673,2]
[378162602,1754755841795,-463.11060539,0.00021673,2]
[378162603,1754755841806,-460.0,0.00021673,2]
[378162604,1754755841818,-460.0,0.00021673,2]
[378162605,1754755841831,-460.0,0.00021673,2]
[378162606,1754755841842,-460.0,0.00021673,2]
[378162607,1754755841853,-460.0,0.00021673,2]
[378162608,1754755841864,-460.0,0.00021673,2]
[378162609,1754755841875,-460.0,0.00021673,2]
[378162610,1754755841887,-460.0,0.00021673,2]
[378162611,1754755841898,-460.0,0.00021673,2]
[378162612,1754755841909,-460.0,0.00021673,2]
[378162613,1754755841920,-460.0,0.00021673,2]
[378162614,1754755841931,-460.0,0.00021673,2]
[378162615,1754755841942,-460.0,0.00021673,2]
[378162616,1754755841953,-460.0,0.00021673,2]
[378162617,1754755841964,-585.25,0.00021673,2]
[378162618,1754755841975,-460.0,0.00021673,2]
[378162619,1754755841985,-460.0,0.00021673,2]
[378162620,1754755841997,-460.0,0.00021673,2]
[378162621,1754755842007,-460.0,0.00021673,2]
[378162622,1754755842018,-597.52,0.00021673,2]
[378162623,1754755842029,-460.0,0.00021673,2]
[378162624,1754755842040,-460.0,0.00021673,2]
[378162625,1754755842051,-460.0,0.00021673,2]
[378162626,1754755842063,-460.0,0.00021673,2]
[378162627,1754755842074,-460.0,0.00021673,2]
[378162628,1754755842084,-462.74594076,0.00021673,2]
[378162629,1754755842095,-460.0,0.00021673,2]
[378162630,1754755842106,-397.97,0.00021673,2]
[378162631,1754755842118,-460.0,0.00021673,2]
[378162632,1754755842129,-460.0,0.00021673,2]
[378162633,1754755842140,-1788.84,0.00021673,2]
[378162634,1754755842151,-460.0,0.00021673,2]
[378162635,1754755842163,-460.0,0.00021673,2]
[378162636,1754755842174,-460.0,0.00021673,2]
[378162637,1754755842184,-460.0,0.00021673,2]
[378162638,1754755842195,-460.0,0.00021673,2]
[378162639,1754755842205,-460.0,0.00021674,2]
[378162640,1754755842214,-311.45030657,0.00021674,2]
[378162641,1754755842223,-460.0,0.00021674,2]
[378162642,1754755842233,-460.0,0.00021674,2]
[378162643,1754755842242,-460.0,0.00021674,2]
[378162644,1754755842252,-347.93440065,0.00021674,2]
[378162645,1754755842443,-460.0,0.00021674,2]
[378162646,1754755842468,-460.0,0.00021674,2]
[378162647,1754755842479,-460.0,0.00021674,2]
[378162648,1754755842489,-460.0,0.00021674,2]
[378162649,1754755842498,-460.0,0.00021674,2]
[378162650,1754755842508,-460.0,0.00021674,2]
[378162651,1754755842518,-460.0,0.00021674,2]
[378162652,1754755842528,-460.0,0.00021674,2]
[378162653,1754755842537,-460.0,0.00021674,2]
[378162654,1754755842547,-460.0,0.00021674,2]
[378162656,1754755842557,-460.0,0.00021674,2]
[378162657,1754755842566,-460.0,0.00021674,2]
[378162658,1754755842576,-460.0,0.00021674,2]
[378162659,1754755842586,-460.0,0.00021674,2]
[378162660,1754755842595,-460.0,0.00021674,2]
[378162661,1754755842604,-462.38107018,0.00021674,2]
[378162662,1754755842614,-235.2618485,0.00021674,2]
[378162663,1754755842624,-598.83283815,0.00021674,2]
[378162664,1754755842634,-460.0,0.00021674,2]
[378162665,1754755842643,-460.0,0.00021674,2]
[378162666,1754755842653,-460.0,0.00021674,2]
[378162667,1754755842662,-468.55317735,0.00021674,2]
[378162668,1754755842671,-460.0,0.00021674,2]
[378162669,1754755842680,-467.73685556,0.00021674,2]
[378162670,1754755842690,-550.95577573,0.00021674,2]
[378162671,1754755842699,-460.0,0.00021674,2]
[378162672,1754755842708,-461.30574509,0.00021674,2]
[378162673,1754755842717,-460.0,0.00021674,2]
[378162675,1754755842727,-460.0,0.00021674,2]
[378162676,1754755842737,-500.0,0.00021674,2]
[378162677,1754755842746,-460.0,0.00021674,2]
[378162679,1754755842756,-461.42814951,0.00021674,2]